[Event "56th Biel Festival Rapid 2023"]
[Site "Biel"]
[Date "2024.04.13"]
[Round "8.17"]
[White "Schnepp, Gunnar"]
[Black "Tkhoruk, Roman"]
[Result "0-1"]
[WhiteElo "2278"]
[BlackElo "1803"]
[PlyCount "93"]
[EventDate "2023.07.16"]
[EventType "swiss"]
[EventCountry "SUI"]
[TimeControl "900+5"]

1. d4 {[%emt 0:00:13]} f5 {[%emt 0:00:01]} 2. g3 {[%emt 0:00:07]} e6 {[%emt 0:00:05]} 3. Bg2 {[%emt 0:00:03]} d5 {[%emt 0:00:01]} 4. Nf3 {[%emt 0:00:14]} c6 {[%emt 0:00:01]} 5. O-O {[%emt 0:00:04]} Nf6 {[%emt 0:00:01]} 6. c4 {[%emt 0:00:15]} b6 {[%emt 0:00:04]} 7. Ne5 {[%emt 0:00:30]} Bd6 {[%emt 0:00:24]} 8. Nc3 {[%emt 0:00:52]} Bb7 {[%emt 0:00:24]} 9. Bg5 {[%emt 0:03:26]} h6 {[%emt 0:00:38]} 10. Ng6 {[%emt 0:00:33]} Rg8 {[%emt 0:00:03]} 11. Bf4 {[%emt 0:00:16]} Bxf4 {[%emt 0:00:08]} 12. Nxf4 {[%emt 0:00:36]} Kf7 {[%emt 0:00:03]} 13. f3 {[%emt 0:01:41]} Re8 {[%emt 0:00:51]} 14. e4 {[%emt 0:00:36]} Kg8 {[%emt 0:00:14]} 15. cxd5 {[%emt 0:01:27]} cxd5 {[%emt 0:00:18]} 16. exf5 {[%emt 0:00:33]} exf5 {[%emt 0:00:06]} 17. Re1 {[%emt 0:00:35]} Nc6 {[%emt 0:01:07]} 18. Rxe8+ {[%emt 0:00:14]} Qxe8 {[%emt 0:00:30]} 19. Nfxd5 {[%emt 0:00:03]} Nxd5 {[%emt 0:00:17]} 20. Nxd5 {[%emt 0:00:02]} Rd8 {[%emt 0:00:02]} 21. f4 {[%emt 0:00:35]} Na5 {[%emt 0:00:22]} 22. b4 {[%emt 0:01:33]} Bxd5 {[%emt 0:00:07]} 23. bxa5 {[%emt 0:00:35]} Qe3+ {[%emt 0:00:02]} 24. Kh1 {[%emt 0:00:03]} Bxg2+ {[%emt 0:00:34]} 25. Kxg2 {[%emt 0:00:01]} Rxd4 {[%emt 0:00:43]} 26. Qb3+ {[%emt 0:00:02]} Qxb3 {[%emt 0:00:01]} 27. axb3 {[%emt 0:00:01]} Rd2+ {[%emt 0:00:02]} 28. Kh3 {[%emt 0:00:37]} Rb2 {[%emt 0:00:38]} 29. axb6 {[%emt 0:00:11]} axb6 {[%emt 0:00:07]} 30. Rd1 {[%emt 0:01:00]} Rxb3 {[%emt 0:00:09]} 31. Rd5 {[%emt 0:00:02]} g6 {[%emt 0:00:51]} 32. Rd7 {[%emt 0:00:07]} b5 {[%emt 0:00:06]} 33. Kh4 {[%emt 0:00:07]} Rb2 {[%emt 0:00:11]} 34. h3 {[%emt 0:00:02]} b4 {[%emt 0:00:02]} 35. Rb7 {[%emt 0:00:32]} b3 {[%emt 0:00:09]} 36. g4 {[%emt 0:00:01]} fxg4 {[%emt 0:00:03]} 37. hxg4 {[%emt 0:00:01]} Rb1 {[%emt 0:00:07]} 38. Kg3 {[%emt 0:00:08]} b2 {[%emt 0:00:11]} 39. Kg2 {[%emt 0:00:01]} h5 {[%emt 0:00:36]} 40. gxh5 {[%emt 0:00:01]} gxh5 {[%emt 0:00:02]} 41. f5 {[%emt 0:00:02]} h4 {[%emt 0:00:13]} 42. f6 {[%emt 0:00:03]} h3+ {[%emt 0:00:09]} 43. Kh2 {[%emt 0:00:03]} Kf8 {[%emt 0:00:02]} 44. Rb3 {[%emt 0:00:27]} Kf7 {[%emt 0:00:05]} 45. Rb6 {[%emt 0:00:07]} Kg6 {[%emt 0:00:02]} 46. f7+ {[%emt 0:00:06]} Kxf7 {[%emt 0:00:01]} 47. Rb3 {[%emt 0:00:06]} 0-1

[Event "56th Biel Festival Rapid 2023"]
[Site "Biel"]
[Date "2024.04.13"]
[Round "8.19"]
[White "Angst, Robin"]
[Black "Zargarov, Mikayel"]
[Result "*"]
[WhiteElo "2215"]
[BlackElo "1951"]
[PlyCount "85"]
[EventDate "2023.07.16"]
[EventType "swiss"]
[EventCountry "SUI"]
[TimeControl "900+5"]

1. e4 {[%emt 0:00:11]} c5 {[%emt 0:00:01]} 2. Nc3 {[%emt 0:00:01]} Nc6 {[%emt 0:00:00]} 3. f4 {[%emt 0:00:02]} g6 {[%emt 0:00:06]} 4. Nf3 {[%emt 0:00:01]} Bg7 {[%emt 0:00:00]} 5. Bc4 {[%emt 0:00:05]} e6 {[%emt 0:00:04]} 6. O-O {[%emt 0:00:04]} Nge7 {[%emt 0:00:04]} 7. Qe1 {[%emt 0:00:02]} a6 {[%emt 0:00:09]} 8. d3 {[%emt 0:00:06]} O-O {[%emt 0:00:13]} 9. f5 {[%emt 0:00:06]} d5 {[%emt 0:03:27]} 10. Bb3 {[%emt 0:00:08]} exf5 {[%emt 0:02:37]} 11. Nxd5 {[%emt 0:00:25]} Nxd5 {[%emt 0:02:18]} 12. Bxd5 {[%emt 0:00:03]} Nb4 {[%emt 0:00:00]} 13. Bb3 {[%emt 0:01:33]} fxe4 {[%emt 0:01:22]} 14. Ng5 {[%emt 0:00:40]} c4 {[%emt 0:01:17]} 15. Bxc4 {[%emt 0:03:10]} Nxc2 {[%emt 0:00:19]} 16. Qh4 {[%emt 0:01:11]} h5 {[%emt 0:01:20]} 17. Rb1 {[%emt 0:01:23]} Be6 {[%emt 0:00:15]} 18. Qxe4 {[%emt 0:02:04]} Bxc4 {[%emt 0:00:43]} 19. dxc4 {[%emt 0:00:33]} Qd4+ {[%emt 0:00:37]} 20. Qxd4 {[%emt 0:00:09]} Nxd4 {[%emt 0:00:23]} 21. Be3 {[%emt 0:01:04]} Nf5 {[%emt 0:00:03]} 22. Bb6 {[%emt 0:00:21]} Rac8 {[%emt 0:00:11]} 23. b3 {[%emt 0:00:01]} Rc6 {[%emt 0:00:07]} 24. Bf2 {[%emt 0:00:04]} Rd6 {[%emt 0:00:14]} 25. Nf3 {[%emt 0:00:09]} Rfd8 {[%emt 0:00:08]} 26. Rfe1 {[%emt 0:00:07]} Bc3 {[%emt 0:00:30]} 27. Rec1 {[%emt 0:00:15]} Bb4 {[%emt 0:00:05]} 28. h3 {[%emt 0:01:01]} Re6 {[%emt 0:00:34]} 29. c5 {[%emt 0:00:43]} Re2 {[%emt 0:00:03]} 30. Rc4 {[%emt 0:00:02]} Ba3 {[%emt 0:00:14]} 31. Ra4 {[%emt 0:00:21]} Rxa2 {[%emt 0:00:02]} 32. b4 {[%emt 0:00:17]} Rd3 {[%emt 0:00:06]} 33. c6 {[%emt 0:00:23]} bxc6 {[%emt 0:00:01]} 34. Rxa6 {[%emt 0:00:01]} Rc3 {[%emt 0:00:09]} 35. Ra8+ {[%emt 0:00:54]} Kh7 {[%emt 0:00:02]} 36. Ne5 {[%emt 0:00:18]} Rcc2 {[%emt 0:00:05]} 37. Rf1 {[%emt 0:00:05]} Ne3 {[%emt 0:00:06]} 38. Re1 {[%emt 0:00:01]} Rxf2 {[%emt 0:00:02]} 39. Rxe3 {[%emt 0:00:02]} Rxg2+ {[%emt 0:00:01]} 40. Kh1 {[%emt 0:00:07]} Rh2+ {[%emt 0:00:01]} 41. Kg1 {[%emt 0:00:05]} Bxb4 {[%emt 0:00:16]} 42. Rf3 {[%emt 0:00:10]} Kg7 {[%emt 0:00:06]} 43. h4 {[%emt 0:00:00]} *

[Event "56th Biel Festival Rapid 2023"]
[Site "Biel"]
[Date "2024.04.13"]
[Round "8.21"]
[White "Tissier, Corentin"]
[Black "Baghirov, Rasul"]
[Result "*"]
[WhiteElo "1754"]
[BlackElo "1992"]
[PlyCount "61"]
[EventDate "2023.07.16"]
[EventType "swiss"]
[EventCountry "SUI"]
[TimeControl "900+5"]

1. e4 {[%emt 0:00:09]} c5 {[%emt 0:00:01]} 2. Nf3 {[%emt 0:00:02]} Nc6 {[%emt 0:00:04]} 3. d4 {[%emt 0:00:02]} cxd4 {[%emt 0:00:02]} 4. Nxd4 {[%emt 0:00:02]} Nf6 {[%emt 0:00:01]} 5. Nc3 {[%emt 0:00:07]} a6 {[%emt 0:00:01]} 6. Nxc6 {[%emt 0:01:20]} dxc6 {[%emt 0:00:01]} 7. Qxd8+ {[%emt 0:00:23]} Kxd8 {[%emt 0:00:02]} 8. Be3 {[%emt 0:00:52]} e5 {[%emt 0:00:38]} 9. Bb6+ {[%emt 0:00:12]} Ke8 {[%emt 0:00:04]} 10. O-O-O {[%emt 0:00:19]} Be6 {[%emt 0:00:04]} 11. f3 {[%emt 0:00:30]} Nd7 {[%emt 0:03:17]} 12. Bf2 {[%emt 0:00:48]} b5 {[%emt 0:00:31]} 13. Kb1 {[%emt 0:00:14]} Bb4 {[%emt 0:00:13]} 14. Be2 {[%emt 0:01:01]} Ke7 {[%emt 0:00:36]} 15. a3 {[%emt 0:01:44]} Bxc3 {[%emt 0:00:09]} 16. bxc3 {[%emt 0:00:02]} c5 {[%emt 0:01:08]} 17. Rd2 {[%emt 0:00:38]} Rhc8 {[%emt 0:00:05]} 18. Rhd1 {[%emt 0:00:02]} Rc6 {[%emt 0:00:09]} 19. g3 {[%emt 0:00:27]} Rb8 {[%emt 0:00:18]} 20. f4 {[%emt 0:01:57]} f6 {[%emt 0:00:02]} 21. Ka1 {[%emt 0:02:42]} Rb7 {[%emt 0:00:57]} 22. Rb1 {[%emt 0:00:33]} Nb6 {[%emt 0:00:18]} 23. fxe5 {[%emt 0:00:19]} fxe5 {[%emt 0:00:02]} 24. Be3 {[%emt 0:00:22]} Na4 {[%emt 0:00:02]} 25. Bg5+ {[%emt 0:00:41]} Kf7 {[%emt 0:00:01]} 26. Bh5+ {[%emt 0:00:41]} g6 {[%emt 0:00:01]} 27. Rf1+ {[%emt 0:00:16]} Kg7 {[%emt 0:00:02]} 28. Be2 {[%emt 0:00:43]} Bh3 {[%emt 0:00:32]} 29. Rf2 {[%emt 0:00:12]} Nxc3 {[%emt 0:00:04]} 30. Rd8 {[%emt 0:00:09]} Nxe4 {[%emt 0:00:10]} 31. Be3 {[%emt 0:00:11]} *

[Event "56th Biel Festival Rapid 2023"]
[Site "Biel"]
[Date "2024.04.13"]
[Round "8.22"]
[White "Vianin, Pascal"]
[Black "Ragios, Konstantinos"]
[Result "1/2-1/2"]
[WhiteElo "2051"]
[BlackElo "1925"]
[PlyCount "61"]
[EventDate "2023.07.16"]
[EventType "swiss"]
[EventCountry "SUI"]
[TimeControl "900+5"]

1. e4 {[%emt 0:00:11]} e5 {[%emt 0:00:01]} 2. Nf3 {[%emt 0:00:06]} Nc6 {[%emt 0:00:01]} 3. Bb5 {[%emt 0:00:02]} a6 {[%emt 0:00:01]} 4. Bxc6 {[%emt 0:00:01]} dxc6 {[%emt 0:00:02]} 5. O-O {[%emt 0:00:03]} Bg4 {[%emt 0:00:05]} 6. h3 {[%emt 0:00:03]} Bxf3 {[%emt 0:00:02]} 7. Qxf3 {[%emt 0:00:03]} Bd6 {[%emt 0:01:18]} 8. d3 {[%emt 0:00:28]} Qf6 {[%emt 0:00:22]} 9. Nd2 {[%emt 0:00:54]} Qxf3 {[%emt 0:00:15]} 10. Nxf3 {[%emt 0:00:01]} Ne7 {[%emt 0:00:02]} 11. Bd2 {[%emt 0:00:56]} O-O {[%emt 0:00:16]} 12. Bc3 {[%emt 0:00:10]} Ng6 {[%emt 0:00:02]} 13. Rfe1 {[%emt 0:00:14]} Rfe8 {[%emt 0:00:24]} 14. a4 {[%emt 0:00:16]} Rad8 {[%emt 0:00:17]} 15. b3 {[%emt 0:00:09]} Nf4 {[%emt 0:00:35]} 16. Kh2 {[%emt 0:00:16]} Re6 {[%emt 0:01:04]} 17. g3 {[%emt 0:00:12]} Ng6 {[%emt 0:00:11]} 18. Kg2 {[%emt 0:00:19]} Rf8 {[%emt 0:00:23]} 19. Ng5 {[%emt 0:00:26]} Ree8 {[%emt 0:00:12]} 20. Rf1 {[%emt 0:00:32]} Bc5 {[%emt 0:00:29]} 21. Rae1 {[%emt 0:00:20]} Re7 {[%emt 0:00:45]} 22. Re2 {[%emt 0:00:27]} f6 {[%emt 0:00:16]} 23. Nf3 {[%emt 0:00:06]} Rd7 {[%emt 0:00:01]} 24. Rfe1 {[%emt 0:00:29]} Rdf7 {[%emt 0:00:26]} 25. Rf1 {[%emt 0:00:16]} Rd7 {[%emt 0:00:31]} 26. h4 {[%emt 0:00:07]} h5 {[%emt 0:00:23]} 27. Nd2 {[%emt 0:00:29]} Rfd8 {[%emt 0:01:23]} 28. Nc4 {[%emt 0:00:19]} b6 {[%emt 0:00:21]} 29. Bd2 {[%emt 0:00:43]} Nf8 {[%emt 0:00:36]} 30. Be3 {[%emt 0:00:20]} Ne6 {[%emt 0:00:33]} 31. Bxc5 {[%emt 0:00:46]} 1/2-1/2

[Event "56th Biel Festival Rapid 2023"]
[Site "Biel"]
[Date "2024.04.13"]
[Round "8.23"]
[White "Ranieri, Pierpaolo"]
[Black "Toenz, Arthur"]
[Result "0-1"]
[WhiteElo "1753"]
[BlackElo "2040"]
[PlyCount "62"]
[EventDate "2023.07.16"]
[EventType "swiss"]
[EventCountry "SUI"]
[TimeControl "900+5"]

1. d4 {[%emt 0:00:08]} Nf6 {[%emt 0:00:02]} 2. Nf3 {[%emt 0:00:05]} e6 {[%emt 0:00:05]} 3. e3 {[%emt 0:00:00]} b6 {[%emt 0:00:07]} 4. Bd3 {[%emt 0:00:02]} Bb7 {[%emt 0:00:02]} 5. Nbd2 {[%emt 0:00:02]} c5 {[%emt 0:00:06]} 6. c3 {[%emt 0:00:02]} Be7 {[%emt 0:00:19]} 7. O-O {[%emt 0:00:03]} d5 {[%emt 0:00:14]} 8. Re1 {[%emt 0:00:06]} O-O {[%emt 0:00:06]} 9. a3 {[%emt 0:00:02]} Nbd7 {[%emt 0:00:22]} 10. b4 {[%emt 0:00:24]} Ne4 {[%emt 0:00:38]} 11. Qc2 {[%emt 0:00:08]} f5 {[%emt 0:00:19]} 12. bxc5 {[%emt 0:00:12]} bxc5 {[%emt 0:00:03]} 13. Rb1 {[%emt 0:00:08]} Qc7 {[%emt 0:00:11]} 14. a4 {[%emt 0:00:17]} c4 {[%emt 0:00:22]} 15. Bf1 {[%emt 0:00:09]} Bc6 {[%emt 0:00:17]} 16. Qa2 {[%emt 0:00:11]} Nxc3 {[%emt 0:00:05]} 17. Qa1 {[%emt 0:00:12]} Nxb1 {[%emt 0:00:06]} 18. Nxb1 {[%emt 0:00:02]} Rfb8 {[%emt 0:00:20]} 19. Ba3 {[%emt 0:00:03]} Bd6 {[%emt 0:00:37]} 20. Ng5 {[%emt 0:00:19]} Nf8 {[%emt 0:00:11]} 21. f4 {[%emt 0:00:03]} Rb3 {[%emt 0:00:21]} 22. Nf3 {[%emt 0:00:42]} Bxa3 {[%emt 0:00:16]} 23. Nxa3 {[%emt 0:00:02]} Nd7 {[%emt 0:00:27]} 24. Nxc4 {[%emt 0:01:17]} dxc4 {[%emt 0:00:47]} 25. Bxc4 {[%emt 0:00:02]} Bd5 {[%emt 0:00:13]} 26. Bxb3 {[%emt 0:00:21]} Bxb3 {[%emt 0:00:02]} 27. Qa3 {[%emt 0:00:18]} Bd5 {[%emt 0:00:23]} 28. Rc1 {[%emt 0:00:04]} Qd8 {[%emt 0:00:08]} 29. Qd6 {[%emt 0:00:24]} Nb6 {[%emt 0:00:13]} 30. Qe5 {[%emt 0:00:10]} Rc8 {[%emt 0:00:18]} 31. Rb1 {[%emt 0:01:05]} Nc4 {[%emt 0:00:07]} 0-1

[Event "56th Biel Festival Rapid 2023"]
[Site "Biel"]
[Date "2024.04.13"]
[Round "8.26"]
[White "Stebahne, Olaf"]
[Black "Paholok, Igor"]
[Result "0-1"]
[WhiteElo "1913"]
[BlackElo "1710"]
[PlyCount "98"]
[EventDate "2023.07.16"]
[EventType "swiss"]
[EventCountry "SUI"]
[TimeControl "900+5"]

1. c4 {[%emt 0:00:10]} b6 {[%emt 0:00:14]} 2. d4 {[%emt 0:00:13]} e6 {[%emt 0:00:03]} 3. Nc3 {[%emt 0:00:05]} Bb7 {[%emt 0:00:06]} 4. e4 {[%emt 0:00:20]} Bb4 {[%emt 0:00:26]} 5. Bd3 {[%emt 0:00:05]} d5 {[%emt 0:01:01]} 6. e5 {[%emt 0:00:16]} Bxc3+ {[%emt 0:00:15]} 7. bxc3 {[%emt 0:00:03]} dxc4 {[%emt 0:00:08]} 8. Bxc4 {[%emt 0:00:27]} Bxg2 {[%emt 0:00:09]} 9. Qg4 {[%emt 0:00:03]} Bxh1 {[%emt 0:01:03]} 10. Qxg7 {[%emt 0:00:02]} Qh4 {[%emt 0:01:49]} 11. Qxh8 {[%emt 0:00:41]} Qe4+ {[%emt 0:00:09]} 12. Ne2 {[%emt 0:02:09]} Qg6 {[%emt 0:00:07]} 13. Bd3 {[%emt 0:00:05]} Qxd3 {[%emt 0:01:00]} 14. Qxg8+ {[%emt 0:00:03]} Kd7 {[%emt 0:01:10]} 15. Qxf7+ {[%emt 0:00:48]} Kc6 {[%emt 0:01:09]} 16. Qxe6+ {[%emt 0:02:07]} Kb7 {[%emt 0:00:09]} 17. Qb3 {[%emt 0:02:53]} Bf3 {[%emt 0:00:54]} 18. Qd1 {[%emt 0:00:31]} Bxe2 {[%emt 0:01:08]} 19. Qxe2 {[%emt 0:01:11]} Qxc3+ {[%emt 0:00:01]} 20. Kd1 {[%emt 0:00:24]} Qxa1 {[%emt 0:00:04]} 21. Qe4+ {[%emt 0:00:04]} c6 {[%emt 0:00:36]} 22. Qxh7+ {[%emt 0:01:38]} Ka6 {[%emt 0:00:03]} 23. Qd3+ {[%emt 0:00:05]} b5 {[%emt 0:00:09]} 24. Qa3+ {[%emt 0:00:25]} Kb7 {[%emt 0:01:25]} 25. Qe7+ {[%emt 0:00:05]} Kc8 {[%emt 0:00:16]} 26. Qc5 {[%emt 0:01:20]} Qxa2 {[%emt 0:00:30]} 27. Qf8+ {[%emt 0:00:48]} Kb7 {[%emt 0:00:46]} 28. Qe7+ {[%emt 0:00:08]} Ka6 {[%emt 0:00:13]} 29. e6 {[%emt 0:00:06]} Qa4+ {[%emt 0:00:13]} 30. Ke2 {[%emt 0:00:08]} Qxd4 {[%emt 0:01:12]} 31. Qa3+ {[%emt 0:00:08]} Qa4 {[%emt 0:00:08]} 32. e7 {[%emt 0:00:08]} Nd7 {[%emt 0:00:28]} 33. Qd6 {[%emt 0:00:02]} Qe4+ {[%emt 0:00:18]} 34. Kd1 {[%emt 0:00:06]} Qd5+ {[%emt 0:00:13]} 35. Qxd5 {[%emt 0:00:05]} cxd5 {[%emt 0:00:01]} 36. Bg5 {[%emt 0:00:04]} Re8 {[%emt 0:00:10]} 37. h4 {[%emt 0:00:01]} Ne5 {[%emt 0:00:11]} 38. f4 {[%emt 0:00:01]} Nf7 {[%emt 0:00:05]} 39. f5 {[%emt 0:00:07]} b4 {[%emt 0:00:07]} 40. f6 {[%emt 0:00:04]} b3 {[%emt 0:00:05]} 41. Kc1 {[%emt 0:00:05]} Kb5 {[%emt 0:00:03]} 42. Kb2 {[%emt 0:00:02]} Kc4 {[%emt 0:00:01]} 43. Be3 {[%emt 0:00:05]} a5 {[%emt 0:00:04]} 44. h5 {[%emt 0:00:16]} a4 {[%emt 0:00:11]} 45. h6 {[%emt 0:00:01]} Nh8 {[%emt 0:00:06]} 46. h7 {[%emt 0:00:01]} Nf7 {[%emt 0:00:02]} 47. Bd2 {[%emt 0:00:09]} d4 {[%emt 0:00:04]} 48. Ka3 {[%emt 0:00:02]} d3 {[%emt 0:00:04]} 49. Kxa4 {[%emt 0:00:02]} b2 {[%emt 0:00:02]} 0-1

[Event "56th Biel Festival Rapid 2023"]
[Site "Biel"]
[Date "2024.04.13"]
[Round "8.31"]
[White "Meier, Peter"]
[Black "Chobaut, Nicolas"]
[Result "*"]
[WhiteElo "2033"]
[BlackElo "1919"]
[PlyCount "96"]
[EventDate "2023.07.16"]
[EventType "swiss"]
[EventCountry "SUI"]
[TimeControl "900+5"]

1. d4 {[%emt 0:00:16]} e6 {[%emt 0:00:05]} 2. Nf3 {[%emt 0:00:02]} Nf6 {[%emt 0:00:24]} 3. g3 {[%emt 0:00:02]} b6 {[%emt 0:00:26]} 4. Bg2 {[%emt 0:00:02]} Bb7 {[%emt 0:00:05]} 5. O-O {[%emt 0:00:03]} d6 {[%emt 0:00:34]} 6. c4 {[%emt 0:00:06]} Nbd7 {[%emt 0:00:28]} 7. Nc3 {[%emt 0:00:03]} Ne4 {[%emt 0:00:17]} 8. Qc2 {[%emt 0:00:18]} Nxc3 {[%emt 0:01:00]} 9. Qxc3 {[%emt 0:00:03]} Nf6 {[%emt 0:00:46]} 10. b3 {[%emt 0:00:51]} Be7 {[%emt 0:00:06]} 11. Bb2 {[%emt 0:00:05]} O-O {[%emt 0:00:16]} 12. Rfd1 {[%emt 0:00:24]} Be4 {[%emt 0:00:04]} 13. Rac1 {[%emt 0:00:16]} c5 {[%emt 0:01:36]} 14. dxc5 {[%emt 0:01:12]} bxc5 {[%emt 0:00:05]} 15. Qd2 {[%emt 0:00:17]} Qc7 {[%emt 0:01:08]} 16. Bxf6 {[%emt 0:00:16]} gxf6 {[%emt 0:00:01]} 17. Qf4 {[%emt 0:00:35]} Qc6 {[%emt 0:01:50]} 18. g4 {[%emt 0:01:06]} Rad8 {[%emt 0:00:46]} 19. Ne1 {[%emt 0:01:01]} Bxg2 {[%emt 0:00:18]} 20. Nxg2 {[%emt 0:00:02]} Kh8 {[%emt 0:00:11]} 21. Rc3 {[%emt 0:00:12]} Rg8 {[%emt 0:00:03]} 22. e4 {[%emt 0:02:04]} Rg7 {[%emt 0:00:40]} 23. Rh3 {[%emt 0:00:42]} Rdg8 {[%emt 0:00:24]} 24. f3 {[%emt 0:00:11]} Qa6 {[%emt 0:00:34]} 25. a4 {[%emt 0:02:41]} Qb7 {[%emt 0:00:33]} 26. Rd3 {[%emt 0:00:05]} Qb4 {[%emt 0:00:02]} 27. Kf2 {[%emt 0:00:36]} Qa3 {[%emt 0:00:02]} 28. Qe3 {[%emt 0:00:33]} Rb8 {[%emt 0:00:26]} 29. Nf4 {[%emt 0:00:09]} Qb2+ {[%emt 0:00:17]} 30. Kg3 {[%emt 0:00:02]} Qe5 {[%emt 0:00:10]} 31. Rh5 {[%emt 0:00:32]} Qb2 {[%emt 0:00:47]} 32. Qe2 {[%emt 0:00:48]} Qb1 {[%emt 0:00:13]} 33. Qe3 {[%emt 0:00:30]} Qb2 {[%emt 0:01:02]} 34. Ne2 {[%emt 0:00:10]} Qa1 {[%emt 0:00:42]} 35. Kg2 {[%emt 0:00:16]} Qe1 {[%emt 0:00:12]} 36. Qf2 {[%emt 0:00:10]} Qb1 {[%emt 0:00:13]} 37. Qe3 {[%emt 0:00:25]} Qe1 {[%emt 0:00:02]} 38. Qd2 {[%emt 0:00:20]} Qxd2 {[%emt 0:00:07]} 39. Rxd2 {[%emt 0:00:14]} Rxb3 {[%emt 0:00:05]} 40. Rc2 {[%emt 0:00:05]} Rg8 {[%emt 0:00:07]} 41. Nc3 {[%emt 0:00:04]} a6 {[%emt 0:00:11]} 42. h3 {[%emt 0:00:30]} Rgb8 {[%emt 0:00:01]} 43. f4 {[%emt 0:00:02]} Rb2 {[%emt 0:00:12]} 44. Rf2 {[%emt 0:00:10]} Rxf2+ {[%emt 0:00:10]} 45. Kxf2 {[%emt 0:00:02]} Rb4 {[%emt 0:00:00]} 46. f5 {[%emt 0:00:02]} Rxc4 {[%emt 0:00:15]} 47. Ne2 {[%emt 0:00:14]} Rxe4 {[%emt 0:00:03]} 48. fxe6 {[%emt 0:00:03]} fxe6 {[%emt 0:00:01]} *

[Event "56th Biel Festival Rapid 2023"]
[Site "Biel"]
[Date "2024.04.13"]
[Round "8.36"]
[White "Rivaud, Christophe"]
[Black "Tedone, Francesco"]
[Result "*"]
[WhiteElo "1955"]
[BlackElo "1577"]
[PlyCount "57"]
[EventDate "2023.07.16"]
[EventType "swiss"]
[EventCountry "SUI"]
[TimeControl "900+5"]

1. d4 {[%emt 0:00:09]} Nf6 {[%emt 0:00:01]} 2. c4 {[%emt 0:00:02]} Nc6 {[%emt 0:00:01]} 3. g3 {[%emt 0:00:04]} e5 {[%emt 0:00:12]} 4. Nf3 {[%emt 0:00:09]} exd4 {[%emt 0:00:11]} 5. Nxd4 {[%emt 0:00:02]} Bb4+ {[%emt 0:00:13]} 6. Nc3 {[%emt 0:00:08]} Ne4 {[%emt 0:00:31]} 7. Qd3 {[%emt 0:00:53]} Qe7 {[%emt 0:01:12]} 8. Bg2 {[%emt 0:01:08]} Nc5 {[%emt 0:00:32]} 9. Qe3 {[%emt 0:02:40]} Qxe3 {[%emt 0:00:40]} 10. Bxe3 {[%emt 0:00:02]} Ne5 {[%emt 0:00:21]} 11. Ndb5 {[%emt 0:01:45]} Kd8 {[%emt 0:00:33]} 12. Bf4 {[%emt 0:01:07]} f6 {[%emt 0:00:43]} 13. O-O {[%emt 0:01:44]} Bxc3 {[%emt 0:00:29]} 14. bxc3 {[%emt 0:00:20]} a6 {[%emt 0:00:08]} 15. Na3 {[%emt 0:00:48]} Re8 {[%emt 0:00:41]} 16. Be3 {[%emt 0:00:43]} Na4 {[%emt 0:00:51]} 17. Rac1 {[%emt 0:00:44]} Nb6 {[%emt 0:01:32]} 18. Bd5 {[%emt 0:02:42]} Ng4 {[%emt 0:00:38]} 19. Bxb6 {[%emt 0:00:09]} cxb6 {[%emt 0:00:02]} 20. Rfe1 {[%emt 0:00:15]} d6 {[%emt 0:00:22]} 21. Rb1 {[%emt 0:00:07]} b5 {[%emt 0:00:18]} 22. cxb5 {[%emt 0:00:08]} axb5 {[%emt 0:00:02]} 23. Nxb5 {[%emt 0:00:01]} Rxa2 {[%emt 0:00:03]} 24. Bxa2 {[%emt 0:00:10]} Bd7 {[%emt 0:00:08]} 25. Nxd6 {[%emt 0:00:03]} Re7 {[%emt 0:00:11]} 26. Red1 {[%emt 0:00:06]} Ne5 {[%emt 0:00:43]} 27. Rxb7 {[%emt 0:00:05]} h6 {[%emt 0:00:34]} 28. Nf5 {[%emt 0:00:04]} Rf7 {[%emt 0:00:07]} 29. Bxf7 {[%emt 0:00:02]} *

[Event "56th Biel Festival Rapid 2023"]
[Site "Biel"]
[Date "2024.04.13"]
[Round "8.38"]
[White "Dorand, Jean-Pierre"]
[Black "Settegrana Miro"]
[Result "1-0"]
[WhiteElo "1885"]
[BlackElo "1301"]
[PlyCount "54"]
[EventDate "2023.07.16"]
[EventType "swiss"]
[EventCountry "SUI"]
[TimeControl "900+5"]

1. c4 {[%emt 0:00:07]} Nf6 {[%emt 0:00:02]} 2. g3 {[%emt 0:00:02]} g6 {[%emt 0:00:01]} 3. Bg2 {[%emt 0:00:00]} Bg7 {[%emt 0:00:02]} 4. Nf3 {[%emt 0:00:02]} O-O {[%emt 0:00:01]} 5. O-O {[%emt 0:00:02]} d6 {[%emt 0:00:02]} 6. Nc3 {[%emt 0:00:02]} Bg4 {[%emt 0:00:05]} 7. d3 {[%emt 0:00:02]} Nbd7 {[%emt 0:00:03]} 8. h3 {[%emt 0:00:04]} Bxf3 {[%emt 0:00:05]} 9. Bxf3 {[%emt 0:00:02]} Re8 {[%emt 0:00:10]} 10. Bg2 {[%emt 0:00:02]} a5 {[%emt 0:00:04]} 11. Bd2 {[%emt 0:00:12]} c6 {[%emt 0:00:24]} 12. Rb1 {[%emt 0:00:12]} Qc7 {[%emt 0:00:11]} 13. a3 {[%emt 0:00:23]} h5 {[%emt 0:00:05]} 14. b4 {[%emt 0:00:07]} axb4 {[%emt 0:00:06]} 15. axb4 {[%emt 0:00:01]} Nf8 {[%emt 0:00:26]} 16. Qb3 {[%emt 0:00:25]} Ne6 {[%emt 0:00:13]} 17. e3 {[%emt 0:00:06]} h4 {[%emt 0:00:58]} 18. g4 {[%emt 0:00:02]} Nh7 {[%emt 0:00:19]} 19. f4 {[%emt 0:00:13]} Ra7 {[%emt 0:00:15]} 20. Ra1 {[%emt 0:00:03]} Rea8 {[%emt 0:00:05]} 21. Qb2 {[%emt 0:00:14]} c5 {[%emt 0:00:12]} 22. b5 {[%emt 0:00:17]} Qb6 {[%emt 0:01:06]} 23. Rxa7 {[%emt 0:01:27]} Rxa7 {[%emt 0:00:03]} 24. g5 {[%emt 0:00:08]} f5 {[%emt 0:00:05]} 25. Ra1 {[%emt 0:00:05]} Nc7 {[%emt 0:00:05]} 26. Ra3 {[%emt 0:00:43]} Rxa3 {[%emt 0:01:06]} 27. Qxa3 {[%emt 0:00:05]} Nf8 {[%emt 0:00:10]} 1-0